bitfinex-derivatives/quotes_ETHF0:USTF0_20250606
["timestamp","ask_amount","ask_price","bid_price","bid_amount"]
[1749202456991,0.80748,2475.8,2475.2,40.8]
[1749202457194,0.80758,2475.5,2475.4,3.2078]
[1749202457897,0.80767,2475.2,2475.1,8.3728]
[1749202458199,0.80767,2475.3,2475.1,8.3728]
[1749202458402,2.01897,2475.5,2475.2,40.8]
[1749202458699,0.80767,2475.2,2475.1,8.3728]
[1749202458899,0.80767,2475.2,2475.1,3.2078]
[1749202459096,0.80767,2475.2,2475.1,44.0078]
[1749202460305,2.01897,2475.5,2475.1,44.81551]
[1749202460499,0.80766,2475.3,2475.1,44.81549]
[1749202460703,0.80767,2475.2,2475.1,44.0078]
[1749202461101,0.80767,2475.2,2475.1,3.2078]
[1749202462700,1.2955,2475.5,2475.1,3.2078]
[1749202463007,0.80762,2475.4,2475.1,3.2078]
[1749202463206,0.80763,2475.4,2475.2,0.80765]
[1749202463504,0.80764,2475.3,2475.2,0.80765]
[1749202463703,0.80764,2475.3,2475.1,3.2078]
[1749202464303,0.80763,2475.4,2475.1,3.2078]
[1749202464500,0.80761,2475.4,2475.2,2.07666]
[1749202464700,0.80763,2475.3,2475.2,2.07666]
[1749202465005,0.80763,2475.3,2475.2,1.269]
[1749202465210,0.80754,2475.5,2475.3,0.80755]
[1749202465511,0.80752,2475.5,2475.4,4.01535]
[1749202465907,0.80752,2475.5,2475.4,3.2078]
[1749202466699,0.07133351,2475.8,2475.4,3.2078]
[1749202466915,0.07133351,2475.8,2475.7,4.01527]
[1749202467104,0.07133351,2475.8,2475.7,10.47587]
[1749202467305,0.07133351,2475.8,2475.7,11.6655934]
[1749202467905,0.0060584,2476.0,2475.9,0.8074]
[1749202468109,4.34736553,2477.1,2476.0,2.01844]
[1749202468110,1.9618,2476.7,2476.0,2.01844]
[1749202468308,0.80722,2476.5,2476.4,0.80722]
[1749202468514,0.80721,2476.6,2476.5,0.80721]
[1749202468714,0.80722,2476.5,2476.4,0.80722]
[1749202468917,2.01771,2476.9,2476.3,5.7048234]
[1749202469113,0.80721,2476.6,2476.4,0.8132784]
[1749202469415,0.80721,2476.6,2476.5,0.80721]
[1749202469610,0.0060584,2476.8,2476.7,0.80714]
[1749202470313,0.0060584,2476.8,2476.7,2.11444]
[1749202472117,0.0060584,2476.8,2476.7,3.3041634]
[1749202472813,0.0060584,2476.8,2476.7,2.11444]
[1749202473217,0.0060584,2476.8,2476.7,3.30224646]
[1749202473513,0.8131684,2476.8,2476.7,0.80714]
[1749202473713,0.0060584,2476.8,2476.6,10.24330646]
[1749202473909,0.80714,2476.7,2476.6,8.3588]
[1749202474117,0.80714,2476.7,2476.6,9.16598]
[1749202474316,0.80714,2476.7,2476.6,8.3588]
[1749202474513,0.0060584,2476.8,2476.6,8.3588]
[1749202474713,0.80714,2476.7,2476.6,8.3588]
[1749202474914,0.0060584,2476.8,2476.6,8.3588]
[1749202474915,0.88451191,2476.8,2476.6,9.16596]
[1749202475219,0.07739191,2476.8,2476.7,0.80714]
[1749202476815,0.07739191,2476.8,2476.7,3.36624646]
[1749202477116,0.07739191,2476.8,2476.7,3.99854646]
[1749202477517,0.07739191,2476.8,2476.7,7.81074]
[1749202477821,0.07739191,2476.8,2476.7,2.81074]
[1749202478323,0.07739191,2476.8,2476.7,9.14945114]
[1749202479420,0.07739191,2476.8,2476.7,7.96174]
[1749202482123,0.88450191,2476.8,2476.7,7.96174]
[1749202482425,0.80714,2476.7,2476.6,4.01495]
[1749202482626,0.88452191,2476.8,2476.7,0.80714]
[1749202483225,0.07739191,2476.8,2476.7,0.80714]
[1749202483529,0.07739191,2476.8,2476.7,2.14194]
[1749202484523,0.07739191,2476.8,2476.7,3.32965114]
[1749202485830,0.88450191,2476.8,2476.7,2.14194]
[1749202486129,0.88450191,2476.8,2476.7,0.80714]
[1749202486329,0.80714,2476.7,2476.6,9.16495]
[1749202486531,0.80714,2476.7,2476.6,4.01495]
[1749202486721,0.80714,2476.7,2476.6,9.16495]
[1749202491832,0.88452191,2476.8,2476.7,0.80714]
[1749202492032,0.80714,2476.7,2476.6,10.35266114]
[1749202492236,0.80714,2476.7,2476.6,9.16495]
[1749202492428,0.80714,2476.7,2476.6,10.35266114]
[1749202493139,0.88452191,2476.8,2476.7,0.80714]
[1749202493633,0.07739191,2476.8,2476.7,1.99485114]
[1749202493822,0.07739191,2476.8,2476.7,3.361958]
[1749202494025,0.07739191,2476.8,2476.7,2.17164]
[1749202494530,0.88450191,2476.8,2476.7,3.75538194]
[1749202494835,0.88450191,2476.8,2476.7,2.17164]
[1749202495229,0.07739191,2476.8,2476.7,2.17164]
[1749202495435,0.07739191,2476.8,2476.7,3.75538194]
[1749202495930,0.07739191,2476.8,2476.7,6.96318194]
[1749202496433,0.88450191,2476.8,2476.7,6.41413286]
[1749202496838,0.88450191,2476.8,2476.7,11.55213286]
[1749202497528,0.88450191,2476.8,2476.7,9.15294]
[1749202497934,0.88450191,2476.8,2476.7,3.2078]
[1749202498136,0.88450191,2476.8,2476.7,9.15294]
[1749202498338,0.88450191,2476.8,2476.7,11.5439781]
[1749202500243,0.88450191,2476.8,2476.7,5.5988381]
[1749202500642,0.88450191,2476.8,2476.7,6.4059781]
[1749202501740,0.07739191,2476.8,2476.7,6.4059781]
[1749202501936,0.88450191,2476.8,2476.7,4.01494]
[1749202502948,0.07739191,2476.8,2476.7,4.01494]
[1749202503442,0.88450191,2476.8,2476.7,4.01494]
[1749202505344,0.88450191,2476.8,2476.7,10.73935039]
[1749202506441,0.88450191,2476.8,2476.7,11.54650039]
[1749202506645,0.88450191,2476.8,2476.7,5.60135039]
[1749202506946,0.88450191,2476.8,2476.7,10.73935039]
[1749202507443,0.88450191,2476.8,2476.7,5.60135039]
[1749202507645,0.88450191,2476.8,2476.7,3.2078]
[1749202507946,0.88450191,2476.8,2476.7,5.60135039]
[1749202508253,0.88450191,2476.8,2476.7,3.2078]
[1749202508636,0.88450191,2476.8,2476.7,4.01495]
[1749202508941,0.07739191,2476.8,2476.7,4.01495]
[1749202509149,0.07739191,2476.8,2476.7,9.18287381]
[1749202509337,0.07133351,2476.8,2476.7,9.18287381]
[1749202509542,0.80706,2477.1,2477.0,0.80702]
[1749202509746,0.80706,2477.1,2477.0,9.15282]
[1749202511647,0.80706,2477.1,2477.0,10.49342]
[1749202515147,0.80706,2477.1,2477.0,5.35542]
[1749202515353,0.80706,2477.1,2477.0,10.49342]
[1749202515748,0.80706,2477.1,2477.0,8.3458]
[1749202516252,0.80706,2477.1,2477.0,3.2078]
[1749202517754,5.80706,2477.1,2477.0,4.80204897]
[1749202517955,5.80706,2477.1,2477.0,4.40364649]
[1749202518350,6.48736,2477.1,2477.0,3.2078]
[1749202518550,1.48736,2477.1,2477.0,3.2078]
[1749202518850,1.48736,2477.1,2477.0,4.40364649]
[1749202519054,6.48736,2477.1,2477.0,3.2078]
[1749202519356,7.86326,2477.1,2477.0,3.2078]
[1749202519548,7.93459351,2477.1,2477.0,3.2078]
[1749202521454,2.93459351,2477.1,2477.0,3.2078]
[1749202522142,22.01859351,2477.1,2477.0,3.2078]
[1749202522349,22.01859351,2477.1,2476.9,1.19584649]
[1749202522350,0.80705,2477.0,2476.9,1.19584649]
[1749202522544,6.4971,2477.0,2476.4,4.80810737]
[1749202522750,0.80721,2476.5,2476.4,0.0060584]
[1749202522951,0.80721,2476.5,2476.4,8.4e-06]
[1749202522952,5.94521,2476.5,2476.4,8.4e-06]
[1749202523150,0.8074,2475.9,2475.8,1.59424897]
[1749202523451,0.80744,2475.8,2475.7,1.59424897]
[1749202524452,2.7146184,2476.0,2475.6,5.59869894]
[1749202524453,0.80747,2475.7,2475.6,4.80204897]
[1749202525350,0.80747,2475.7,2475.6,3.2078]
[1749202527058,0.8075,2475.6,2475.5,0.0060584]
[1749202533172,0.8075,2475.6,2475.5,1.9877584]
[1749202533770,0.8075,2475.6,2475.5,0.6809584]
[1749202534071,0.8075,2475.6,2475.5,0.0060584]
[1749202535967,0.87883351,2475.6,2475.5,0.0060584]
[1749202537974,0.80767,2475.1,2475.0,3.2078]
[1749202538177,0.80767,2475.1,2475.0,4.0155]
[1749202538376,19.083,2475.2,2475.0,4.01548]
[1749202538576,0.80767,2475.1,2475.0,4.5601]
[1749202538766,0.80767,2475.1,2475.0,5.3678]
[1749202539172,0.80767,2475.1,2475.0,4.5601]
[1749202540172,0.80767,2475.1,2475.0,5.3678]
[1749202540581,0.80767,2475.1,2475.0,4.5601]
[1749202542378,24.30981,2475.3,2474.8,8.4e-06]
[1749202542570,4.01553,2474.9,2474.8,8.4e-06]
[1749202542975,11.00623,2474.9,2474.8,8.4e-06]
[1749202544474,11.32753497,2474.9,2474.8,8.4e-06]
[1749202545180,35.53753497,2474.9,2474.8,8.4e-06]
[1749202546674,4.03984,2474.2,2473.5,1.3567]
[1749202546874,0.80816,2473.6,2473.5,1.3567]
[1749202548678,0.80816,2473.6,2473.5,0.6639]
[1749202549278,19.89316,2473.6,2473.5,0.6639]
[1749202549972,0.0060584,2473.8,2473.5,0.6639]
[1749202550176,0.0060584,2473.8,2473.7,0.80812]
[1749202552785,3.2078,2474.2,2474.1,0.80799]
[1749202553079,4.01576,2474.2,2474.1,0.80799]
[1749202554382,0.0060584,2474.4,2474.3,0.80793]
[1749202555085,0.0060584,2474.4,2474.3,1.48803]
[1749202555578,0.0060584,2474.4,2474.3,6.48803]
[1749202555781,0.07133351,2474.9,2474.7,0.80777]
[1749202555985,0.80777,2474.8,2474.7,0.80777]
[1749202556681,2.09070351,2474.9,2474.5,0.0060584]
[1749202556884,0.80783,2474.6,2474.5,0.0060584]
[1749202557989,0.80783,2474.6,2474.5,0.8139184]
[1749202558579,0.80782,2474.7,2474.6,0.80783]
[1749202558777,0.80783,2474.6,2474.5,0.0060584]
[1749202560482,19.88883,2474.6,2474.5,0.0060584]
[1749202560682,0.80783,2474.6,2474.5,0.0060584]
[1749202560882,19.88883,2474.6,2474.5,0.0060584]
[1749202561286,0.80783,2474.6,2474.5,0.0060584]
[1749202561487,19.88883,2474.6,2474.5,0.0060584]
[1749202562187,19.88783,2474.6,2474.5,0.0060584]
[1749202562395,0.80776,2474.8,2474.7,0.80779]
[1749202562691,0.80783,2474.6,2474.5,0.0060584]
[1749202564592,1.48713,2474.6,2474.5,0.0060584]
[1749202564797,0.80805,2473.9,2473.8,6.61527]
[1749202564985,2.0199,2474.2,2473.9,0.80805]
[1749202564986,0.80805,2474.0,2473.9,0.80805]
[1749202565186,0.80799,2474.1,2474.0,0.80799]
[1749202565389,0.80798,2474.2,2474.1,0.80798]
[1749202565588,0.808,2474.1,2474.0,0.808]
[1749202565894,0.80802,2474.0,2473.9,2.17603]
[1749202566187,0.80801,2474.1,2474.0,0.80802]
[1749202566388,0.80799,2474.2,2474.1,0.80799]
[1749202566588,0.80796,2474.2,2474.1,0.80796]
[1749202566788,0.80799,2474.1,2474.0,2.1393]
[1749202567287,19.078,2474.3,2474.0,1.3313]
[1749202567592,0.80799,2474.2,2474.1,0.80799]
[1749202568189,2.09091351,2474.6,2474.0,1.3313]
[1749202568390,2.09091351,2474.6,2474.4,0.80788]
[1749202568391,0.80788,2474.5,2474.4,0.80788]
[1749202568790,0.07133351,2474.6,2474.2,6.4503]
[1749202568791,0.07133351,2474.6,2474.5,0.80786]
[1749202569490,0.07133351,2474.6,2474.5,4.34180897]
[1749202570190,0.07133351,2474.6,2474.5,5.13845894]
[1749202570486,0.0060584,2475.0,2474.9,0.80773]
[1749202570693,0.8137584,2475.0,2474.9,0.80773]
[1749202571290,0.0060584,2475.0,2474.9,0.80773]
[1749202571496,0.8137584,2475.0,2474.9,0.80773]
[1749202571793,0.0060584,2475.0,2474.9,0.80773]
[1749202572190,0.0060584,2475.0,2474.9,4.01553]
[1749202573384,0.0060584,2475.0,2474.9,5.37663]
[1749202573896,0.0060584,2475.0,2474.9,2.16883]
[1749202574595,0.0060584,2475.0,2474.7,7.51829434]
[1749202574792,2.0253384,2475.0,2474.7,2.95261434]
[1749202574993,0.80776,2474.8,2474.6,9.91831434]
[1749202575294,0.0060584,2475.0,2474.8,0.80776]
[1749202575295,0.80775,2474.9,2474.8,0.80776]
[1749202575897,0.0060584,2475.0,2474.9,0.80773]
[1749202576499,0.0060584,2475.0,2474.8,0.80774]
[1749202576699,0.8137684,2475.0,2474.9,0.80773]
[1749202577099,0.8137684,2475.0,2474.7,1.3187]
[1749202577296,0.8137684,2475.0,2474.9,0.80773]
[1749202577496,0.8137684,2475.0,2474.8,0.80773]
[1749202578005,0.8137684,2475.0,2474.8,0.80776]
[1749202578301,0.0060584,2475.0,2474.9,0.80773]
[1749202578795,0.0060584,2475.0,2474.7,2.12647]
[1749202579108,0.80776,2474.8,2474.7,2.12647]
[1749202579299,0.80775,2474.9,2474.8,0.80776]
[1749202579595,0.8137784,2475.0,2474.9,0.80773]
[1749202580198,0.0060584,2475.0,2474.7,2.91021434]
[1749202580398,0.80773,2474.9,2474.8,2.76166]
[1749202581300,0.80773,2474.9,2474.8,1.9539]
[1749202581599,0.80773,2474.9,2474.8,0.6709]
[1749202581799,0.80773,2474.9,2474.8,1.47866]
[1749202582598,0.80773,2474.9,2474.8,2.6743375]
[1749202582993,0.80773,2474.9,2474.8,1.8665775]
[1749202583196,0.80773,2474.9,2474.8,2.6743375]
[1749202583496,0.80773,2474.9,2474.8,1.47866]
[1749202583995,0.8137884,2475.0,2474.9,0.80773]
[1749202584192,0.8137884,2475.0,2474.9,2.00329845]
[1749202584388,0.8137884,2475.0,2474.9,1.19556845]
[1749202584791,0.8137884,2475.0,2474.9,2.00329845]
[1749202584991,0.0060584,2475.0,2474.9,3.28129845]
[1749202585193,0.8137584,2475.0,2474.9,3.28129845]
[1749202586700,0.8137584,2475.0,2474.9,2.47356845]
[1749202587798,3.2138584,2475.0,2474.7,1.19556845]
[1749202588096,0.8078,2474.7,2474.6,1.84906845]
[1749202588297,0.8078,2474.7,2474.6,1.46133]
[1749202589194,0.8078,2474.7,2474.6,0.6535]
[1749202589394,0.8078,2474.7,2474.6,1.46133]
[1749202589991,0.07133351,2474.8,2474.7,0.8078]
[1749202590191,0.07133351,2474.8,2474.7,3.31656845]
[1749202590704,0.07133351,2474.8,2474.7,2.121]
[1749202591804,0.87910351,2474.8,2474.7,2.121]
[1749202592101,0.87910351,2474.8,2474.7,3.31720416]
[1749202592299,0.87910351,2474.8,2474.7,1.19620416]
[1749202592699,0.8078,2474.7,2474.6,10.16650416]
[1749202592900,0.8078,2474.7,2474.6,6.95870416]
[1749202593604,0.8078,2474.7,2474.6,7.76653416]
[1749202594302,0.07133351,2474.8,2474.7,0.8078]
[1749202594503,0.07133351,2474.8,2474.7,3.32260416]
[1749202594806,0.87910351,2474.8,2474.7,3.32260416]
[1749202595007,0.80777,2474.8,2474.7,3.32260416]
[1749202595201,0.80775,2474.9,2474.8,0.80773]
[1749202595402,0.80775,2474.9,2474.8,2.00393416]
[1749202596700,0.80775,2474.9,2474.8,1.19620416]
[1749202596902,0.80775,2474.9,2474.8,2.00397416]
[1749202597410,0.80775,2474.9,2474.8,0.80777]
[1749202597901,0.80777,2474.8,2474.7,3.71788434]
[1749202598303,0.80777,2474.8,2474.7,2.12637]
[1749202599209,0.80777,2474.8,2474.7,0.80777]
[1749202599401,21.0843484,2475.0,2474.6,8.9703]
[1749202599605,0.8078,2474.7,2474.6,6.57031]
[1749202600111,0.87913351,2474.7,2474.6,6.57031]
[1749202600298,0.07133351,2474.7,2474.5,3.83550849]
[1749202600505,4.01563,2474.6,2474.5,2.40008143]
[1749202600705,0.80787,2474.5,2474.4,1.20056677]
[1749202600906,2.17137,2474.5,2474.4,1.20056677]
[1749202601511,2.17137,2474.5,2474.3,1.6007557]
[1749202601512,0.8079,2474.4,2474.3,1.20056677]
[1749202601719,20.4944,2474.4,2474.3,1.20056677]
[1749202602606,20.4944,2474.4,2474.3,2.00849677]
[1749202603012,20.4944,2474.4,2474.3,1.20056677]
[1749202603312,0.80793,2474.3,2474.2,1.20056677]
[1749202603703,2.17113,2474.3,2474.2,1.20056677]
[1749202604512,0.80796,2474.2,2474.1,1.20056677]
[1749202604701,0.80796,2474.2,2474.0,5.6165557]
[1749202604702,1.3632,2474.3,2474.2,0.80796]
[1749202604908,19.6865,2474.4,2474.2,1.19814022]
[1749202605107,0.80793,2474.3,2474.2,2.00609022]
[1749202605518,0.80796,2474.2,2474.1,2.00611022]
[1749202605717,0.80796,2474.2,2474.1,1.19814022]
[1749202606614,0.808,2474.1,2474.0,1.19814022]
[1749202606818,0.80806,2473.9,2473.8,0.0060584]
[1749202607013,1.44725,2474.0,2473.9,0.80806]
[1749202607222,0.80806,2473.9,2473.8,1.20419862]
[1749202607516,0.80806,2473.9,2473.8,0.0060584]
[1749202607716,1.44725,2474.0,2473.9,0.80806]
[1749202608116,3.39869,2474.5,2474.1,0.80798]
[1749202608318,19.6932,2474.4,2474.1,0.80797]
[1749202608518,0.6392,2474.4,2474.0,1.88204022]
[1749202608708,0.80792,2474.4,2474.0,5.25275022]
[1749202608916,0.80791,2474.4,2474.3,0.8079]
[1749202609124,0.80789,2474.5,2474.4,0.80789]
[1749202609325,0.80791,2474.4,2474.3,0.8079]
[1749202609530,22.902,2474.6,2474.4,0.80789]
[1749202609531,0.80789,2474.5,2474.4,0.80789]
[1749202609737,0.8079,2474.4,2474.3,2.82951]
[1749202610638,3.2078,2474.6,2474.5,0.80787]
[1749202611037,3.2078,2474.6,2474.5,2.00395732]
[1749202611232,4.01563,2474.6,2474.5,2.00395732]
[1749202611534,3.2078,2474.6,2474.5,2.00395732]
[1749202611935,4.01563,2474.6,2474.5,2.00395732]
[1749202612135,3.2078,2474.6,2474.5,2.00395732]
[1749202612535,19.86183,2474.7,2474.6,0.80783]
[1749202613032,0.0060584,2475.0,2474.6,0.80783]
[1749202613238,0.80783,2474.6,2474.5,5.21172732]
[1749202613439,0.80783,2474.6,2474.5,1.19608732]
[1749202613633,0.80782,2474.7,2474.6,0.80782]
[1749202613834,0.80782,2474.7,2474.6,2.00390732]
[1749202614531,0.80782,2474.7,2474.6,1.19608732]
[1749202614734,0.80783,2474.6,2474.5,1.19608732]
[1749202615335,0.80787,2474.5,2474.4,1.19608732]
[1749202616035,0.8079,2474.4,2474.3,1.19608732]
[1749202616337,0.8079,2474.4,2474.3,2.00401732]
[1749202616841,4.5235,2474.8,2474.3,1.19608732]
[1749202617136,4.5235,2474.8,2474.4,1.19667897]
[1749202617137,0.80787,2474.5,2474.4,1.19667897]
[1749202617433,0.808,2474.1,2474.0,2.00470897]
[1749202617840,0.808,2474.1,2474.0,1.19667897]
[1749202618337,0.808,2474.1,2473.8,2.4148841]
[1749202618338,0.07133351,2474.3,2473.9,2.00471897]
[1749202618539,0.80803,2474.1,2473.9,2.00471897]
[1749202619235,0.80803,2474.1,2474.0,0.80803]
[1749202620040,0.80799,2474.2,2474.0,0.80801]
[1749202620540,0.80799,2474.2,2474.1,0.808]
[1749202620737,0.07133351,2474.3,2474.2,0.80797]
[1749202621237,0.07133351,2474.3,2474.2,2.00464897]
[1749202621443,0.07133351,2474.3,2474.2,5.6165257]
[1749202621637,0.07133351,2474.3,2474.2,10.7165257]
[1749202621939,0.07133351,2474.3,2474.2,9.11577]
[1749202622341,0.07133351,2474.3,2474.2,14.11577]
[1749202623345,0.07133351,2474.3,2474.2,54.91577]
[1749202624545,0.80781,2474.7,2474.6,0.80784]
[1749202624740,0.80781,2474.7,2474.6,2.00436562]
[1749202625842,0.8078,2474.7,2474.6,2.00436562]
[1749202626141,0.6788,2474.9,2474.6,2.00436562]
[1749202626342,0.6788,2474.9,2474.7,0.8078]
[1749202626539,1.48655,2474.9,2474.6,1.19652562]
[1749202626843,1.48655,2474.9,2474.8,0.80777]
[1749202627141,0.80777,2474.8,2474.7,0.80778]
[1749202628236,20.53056,2474.9,2474.8,0.80777]
[1749202629340,0.80778,2474.8,2474.7,0.80778]
[1749202629540,0.8078,2474.7,2474.6,2.00433562]
[1749202629844,0.8078,2474.7,2474.6,0.80781]
[1749202630042,0.80784,2474.6,2474.5,5.21216562]
[1749202630843,0.80783,2474.7,2474.6,0.80782]
[1749202631041,0.80784,2474.6,2474.5,4.40432562]
[1749202631248,0.80787,2474.5,2474.4,1.19652562]
[1749202631440,1.48807,2474.5,2474.4,1.19652562]
[1749202631636,0.80793,2474.3,2474.2,1.19652562]
[1749202631842,19.041,2474.3,2474.0,1.19652562]
[1749202632041,0.80803,2474.1,2474.0,0.80802]
[1749202632342,0.80799,2474.2,2474.1,0.80799]
[1749202632650,0.87931351,2474.2,2474.1,0.80797]
[1749202635949,0.808,2474.1,2474.0,2.00453562]
[1749202636144,0.808,2474.1,2474.0,0.80801]
[1749202636349,0.80803,2474.0,2473.9,2.00457562]
[1749202636742,0.80803,2474.0,2473.9,1.19652562]
[1749202636941,0.6961,2474.1,2473.9,2.00457562]
[1749202637146,0.80803,2474.0,2473.9,2.00457562]
[1749202637449,0.80803,2474.0,2473.9,1.19652562]
[1749202637746,0.6961,2474.1,2474.0,0.80803]
[1749202638350,0.6961,2474.1,2473.9,1.19652562]
[1749202638551,0.80806,2473.9,2473.8,4.41181925]
[1749202638848,0.80806,2473.9,2473.8,1.20401925]
[1749202639245,1.9826,2474.1,2473.9,0.80808]
[1749202639439,0.80809,2474.0,2473.9,0.80808]
[1749202639645,0.80809,2473.9,2473.8,2.01211925]
[1749202640350,0.80808,2474.0,2473.9,0.80808]
[1749202640751,3.27913351,2474.2,2474.1,0.80802]
[1749202641347,0.07133351,2474.2,2474.1,2.00598085]
[1749202641549,0.07133351,2474.2,2474.1,3.6701875]
[1749202642654,0.07133351,2474.2,2474.1,4.46787125]
[1749202644152,0.07133351,2474.2,2474.0,3.8795]
[1749202644153,0.07133351,2474.2,2474.0,2.26668933]
[1749202644450,0.07133351,2474.2,2474.1,1.19635571]
[1749202644451,0.87935351,2474.2,2474.1,1.19635571]
[1749202644755,0.07133351,2474.2,2474.0,2.00438571]
[1749202644951,0.87934351,2474.2,2474.1,0.80802]
[1749202645150,0.80802,2474.1,2474.0,1.19635571]
[1749202645350,0.80806,2474.0,2473.9,2.00443571]
[1749202645657,0.80806,2474.0,2473.9,0.80807]
[1749202646750,0.80809,2473.9,2473.8,1.20241411]
[1749202647354,0.80819,2473.6,2473.5,1.19635571]
[1749202647654,0.80822,2473.5,2473.4,2.00460571]
[1749202647957,0.80822,2473.5,2473.4,1.19635571]
[1749202648549,3.2078,2473.6,2473.2,2.01072411]
[1749202648853,0.80828,2473.4,2473.2,0.8143684]
[1749202649256,0.80828,2473.4,2473.3,0.80829]
[1749202649559,0.80824,2473.5,2473.3,0.80829]
[1749202650552,5.202,2473.6,2473.2,0.0060584]
[1749202650753,0.80825,2473.4,2473.2,0.0060584]
[1749202650956,0.80829,2473.3,2473.2,0.0060584]
[1749202651158,0.80829,2473.3,2473.2,0.8143784]
[1749202651362,7.2225,2473.6,2473.2,0.8143784]
[1749202651860,0.80829,2473.3,2473.2,0.0060584]
[1749202652048,0.80829,2473.3,2473.2,0.8143784]
[1749202652250,0.80828,2473.4,2473.2,0.8143784]
[1749202652454,0.80828,2473.4,2473.3,0.80829]
[1749202652653,0.80828,2473.4,2473.2,0.8143484]
[1749202653061,0.80828,2473.4,2473.3,0.80829]
[1749202653357,0.80824,2473.5,2473.2,0.0060584]
[1749202653557,5.9201,2473.6,2473.2,0.0060584]
[1749202653857,0.80829,2473.3,2473.2,0.0060584]
[1749202654153,4.01609,2473.3,2473.2,0.0060584]
[1749202655460,4.01611,2473.3,2473.2,0.0060584]
[1749202660157,3.2078,2473.3,2473.2,0.8143884]
[1749202660358,19.035,2473.4,2473.3,0.80827]
[1749202660558,0.07133351,2473.5,2473.4,0.80826]
[1749202660758,0.87955351,2473.5,2473.4,0.80826]
[1749202660955,0.0060584,2473.7,2473.6,0.80819]
[1749202661363,3.2078,2474.3,2473.8,2.02029]
[1749202661664,0.80803,2474.1,2473.9,2.0184]
[1749202661864,19.84201,2474.2,2473.9,2.0184]
[1749202662066,3.2078,2474.3,2473.9,2.82647]
[1749202662067,0.80803,2474.1,2473.9,2.82647]
[1749202662264,19.84202,2474.2,2473.9,2.0184]
[1749202662454,19.8480784,2474.2,2474.0,0.80803]
[1749202662653,0.80803,2474.1,2474.0,1.3599]
[1749202665367,0.80806,2474.0,2473.9,0.6585]
[1749202665673,1.47034,2474.1,2473.9,1.46657]
[1749202666064,0.80806,2474.0,2473.9,1.46657]
[1749202666570,1.47035,2474.1,2473.9,1.46657]
[1749202666867,0.6623,2474.1,2473.9,1.46657]
[1749202667265,1.47035,2474.1,2473.9,1.46657]
[1749202667469,0.6623,2474.1,2474.0,0.80806]
[1749202667771,0.0060584,2474.2,2474.1,0.80802]
[1749202668465,0.0060584,2474.2,2474.1,1.46602]
[1749202670068,0.8140484,2474.2,2474.1,1.46602]
[1749202670469,0.8140484,2474.2,2474.1,0.658]
[1749202670866,0.80806,2474.0,2473.9,0.6585]
[1749202671073,0.80806,2474.0,2473.9,1.46659]
[1749202671272,0.87939351,2474.0,2473.9,1.46659]
[1749202671771,0.07133351,2474.0,2473.9,1.46659]
[1749202672173,0.07133351,2474.0,2473.9,2.79419]
[1749202673282,0.87939351,2474.0,2473.9,0.6585]
[1749202673780,0.87939351,2474.0,2473.9,1.46659]
[1749202674576,0.07133351,2474.0,2473.9,1.46659]
[1749202674777,0.07133351,2474.0,2473.9,2.85479]
[1749202675474,0.07133351,2474.0,2473.9,4.04949525]
[1749202675881,0.07133351,2474.0,2473.9,2.85479]
[1749202676085,0.07133351,2474.0,2473.9,4.44977933]
[1749202676783,0.07133351,2474.0,2473.9,2.85479]
[1749202677684,0.07133351,2474.0,2473.9,6.06259]
[1749202678381,0.0060584,2474.2,2474.1,0.80803]
[1749202678587,8.39409,2474.9,2474.1,0.80803]
[1749202678588,0.80782,2474.8,2474.7,0.80783]
[1749202678885,0.80785,2474.7,2474.6,0.80784]
[1749202679080,0.80785,2474.7,2474.4,1.9817]
[1749202679081,0.80782,2474.8,2474.7,0.80781]
[1749202679285,0.80785,2474.7,2474.6,0.80784]
[1749202680788,3.8995584,2474.9,2474.8,0.8078]
[1749202680985,3.2138584,2474.9,2474.8,0.8078]
[1749202683283,3.2138584,2474.9,2474.6,0.80785]
[1749202683480,0.80782,2474.8,2474.7,0.80781]
[1749202683783,4.0216484,2474.9,2474.8,0.8078]
[1749202684183,3.2138584,2474.9,2474.8,0.8078]
[1749202684885,0.0060584,2474.9,2474.8,0.8078]
[1749202685085,0.0060584,2474.9,2474.8,2.7743]
[1749202686289,0.0060584,2474.9,2474.8,3.96735633]
[1749202686984,0.0060584,2474.9,2474.8,9.04735633]
[1749202687178,3.2078,2475.3,2474.8,13.23955633]
[1749202687383,4.01543,2475.3,2475.2,0.80767]
[1749202688185,4.01543,2475.3,2475.2,1.47217]
[1749202688385,0.80767,2475.2,2475.1,0.6745]
[1749202688690,0.6435,2475.2,2474.8,2.01949]
[1749202688891,0.80772,2475.1,2475.0,0.8077]
[1749202689685,0.6435,2475.2,2475.1,0.8077]
[1749202690388,1.45117,2475.2,2475.1,0.8077]
[1749202691993,0.6435,2475.2,2475.1,0.8077]
[1749202695094,1.45117,2475.2,2475.1,0.8077]
[1749202695390,0.6435,2475.2,2475.1,0.8077]
[1749202695594,1.45117,2475.2,2475.1,0.8077]
[1749202697894,0.80773,2475.0,2474.9,0.80776]
[1749202698192,2.66268,2475.2,2474.8,3.33982633]
[1749202698193,0.80776,2474.9,2474.8,3.33982633]
[1749202698396,2.0141,2475.2,2474.8,2.53205633]
[1749202698596,0.80772,2475.1,2475.0,0.80771]
[1749202699291,1.45118,2475.2,2475.1,0.8077]
[1749202699895,0.71483351,2475.2,2475.1,0.8077]
[1749202700589,0.00393437,2475.5,2475.4,0.8076]
[1749202700793,0.00393437,2475.5,2475.4,5.20845633]
[1749202701290,0.00393437,2475.5,2475.4,46.8032]
[1749202701487,0.00393437,2475.5,2475.4,47.99440209]
[1749202701687,0.00393437,2475.5,2475.4,46.8032]
[1749202701893,0.00393437,2475.5,2475.4,49.62278176]
[1749202702498,0.00393437,2475.5,2475.4,48.02779243]
[1749202702693,0.00393437,2475.5,2475.4,49.62278176]
[1749202703405,0.00393437,2475.5,2475.4,48.02779243]
[1749202703605,0.00393437,2475.5,2475.4,49.62278176]
[1749202703996,0.00393437,2475.5,2475.4,48.33138176]
[1749202704191,0.00393437,2475.5,2475.4,1.22459243]
[1749202704192,0.81150437,2475.5,2475.4,1.22459243]
[1749202704396,1.94093437,2475.5,2475.1,1.99965469]